[Event "Late-Titled-Tuesday-Blitz-May-28-2024"]
[Site "Chess.com"]
[Date "2024.05.28"]
[Round "3"]
[White "Romadk"]
[Black "AldokhinIvan"]
[Result "0-1"]
[WhiteElo "2456"]
[BlackElo "2632"]
[TimeControl "180+1"]
[EndTime "14:30:14 PDT"]
[Termination "AldokhinIvan won by resignation"]

1. d4 {[%clk 0:03:00.9]} 1... Nf6 {[%clk 0:02:02.8]} 2. Nf3 {[%clk 0:02:59.5]}
2... g6 {[%clk 0:02:02.9]} 3. c4 {[%clk 0:02:58.9]} 3... Bg7 {[%clk 0:02:03.3]}
4. Nc3 {[%clk 0:02:59.5]} 4... d6 {[%clk 0:02:03.9]} 5. Bg5 {[%clk 0:02:58.8]}
5... O-O {[%clk 0:02:04]} 6. e3 {[%clk 0:02:59]} 6... c5 {[%clk 0:02:04.7]} 7.
d5 {[%clk 0:02:59]} 7... h6 {[%clk 0:02:05.2]} 8. Bh4 {[%clk 0:02:59]} 8... e6
{[%clk 0:02:02.8]} 9. Be2 {[%clk 0:02:54.9]} 9... exd5 {[%clk 0:02:02.8]} 10.
cxd5 {[%clk 0:02:55.8]} 10... a6 {[%clk 0:02:02.5]} 11. a4 {[%clk 0:02:56]}
11... Re8 {[%clk 0:01:49.8]} 12. O-O {[%clk 0:02:54.1]} 12... g5 {[%clk
0:01:49.1]} 13. Bg3 {[%clk 0:02:54.1]} 13... Nh5 {[%clk 0:01:41.7]} 14. Nd2
{[%clk 0:02:50]} 14... Nxg3 {[%clk 0:01:41.3]} 15. hxg3 {[%clk 0:02:50.9]} 15...
Nd7 {[%clk 0:01:40.8]} 16. Nc4 {[%clk 0:02:50.1]} 16... Ne5 {[%clk 0:01:40.9]}
17. Qc2 {[%clk 0:02:43.3]} 17... Nxc4 {[%clk 0:01:34.5]} 18. Bxc4 {[%clk
0:02:44.2]} 18... Rb8 {[%clk 0:01:33.8]} 19. a5 {[%clk 0:02:40.1]} 19... b5
{[%clk 0:01:32.2]} 20. axb6 {[%clk 0:02:40]} 20... Rxb6 {[%clk 0:01:33]} 21. b3
{[%clk 0:02:31.7]} 21... Qf6 {[%clk 0:01:25.1]} 22. Rac1 {[%clk 0:02:07.8]}
22... h5 {[%clk 0:01:24.7]} 23. Ne2 {[%clk 0:01:08.1]} 23... Bf5 {[%clk
0:01:08.7]} 24. Bd3 {[%clk 0:01:05.7]} 24... Bxd3 {[%clk 0:00:56]} 25. Qxd3
{[%clk 0:01:06.6]} 25... Reb8 {[%clk 0:00:56.2]} 26. Rb1 {[%clk 0:00:51.2]}
26... a5 {[%clk 0:00:56.1]} 27. Rfc1 {[%clk 0:00:37.2]} 27... Rb4 {[%clk
0:00:51.3]} 28. Rc4 {[%clk 0:00:36.2]} 28... R4b6 {[%clk 0:00:46.2]} 29. Ra4
{[%clk 0:00:35.2]} 29... Rb5 {[%clk 0:00:39.7]} 30. Nc1 {[%clk 0:00:23.4]} 30...
Qc3 {[%clk 0:00:18.6]} 31. Qxc3 {[%clk 0:00:21.5]} 31... Bxc3 {[%clk 0:00:19.5]}
32. Ne2 {[%clk 0:00:19.3]} 32... Be5 {[%clk 0:00:17.8]} 33. f4 {[%clk
0:00:19.2]} 33... Bf6 {[%clk 0:00:13.8]} 34. Kf2 {[%clk 0:00:19.1]} 34... g4
{[%clk 0:00:11]} 35. Nc1 {[%clk 0:00:15.7]} 35... Kg7 {[%clk 0:00:10.7]} 36. Ke2
{[%clk 0:00:15.8]} 36... Kg6 {[%clk 0:00:05.1]} 37. Kd3 {[%clk 0:00:16.2]} 37...
Bg7 {[%clk 0:00:05.8]} 38. Kc2 {[%clk 0:00:14]} 38... f5 {[%clk 0:00:06.1]} 39.
Ne2 {[%clk 0:00:12.4]} 39... Re8 {[%clk 0:00:06.4]} 40. Kd3 {[%clk 0:00:11.6]}
40... Rb7 {[%clk 0:00:04.6]} 41. Nc1 {[%clk 0:00:09.2]} 41... Rbe7 {[%clk
0:00:04.7]} 42. Rxa5 {[%clk 0:00:06.9]} 42... Rxe3+ {[%clk 0:00:05.2]} 43. Kc4
{[%clk 0:00:07.8]} 43... R8e4+ {[%clk 0:00:03.1]} 44. Kb5 {[%clk 0:00:08.4]}
44... Rxg3 {[%clk 0:00:03.9]} 45. Kc6 {[%clk 0:00:08.8]} 45... Rxg2 {[%clk
0:00:04.2]} 46. Kxd6 {[%clk 0:00:09.7]} 46... h4 {[%clk 0:00:04.8]} 47. Kxc5
{[%clk 0:00:09.5]} 47... h3 {[%clk 0:00:05.3]} 48. d6 {[%clk 0:00:10.1]} 48...
h2 {[%clk 0:00:05.5]} 49. Nd3 {[%clk 0:00:10.3]} 49... Rd4 {[%clk 0:00:05.8]}
50. Ne5+ {[%clk 0:00:08.7]} 50... Bxe5 {[%clk 0:00:05.5]} 51. fxe5 {[%clk
0:00:09.6]} 51... Rdd2 {[%clk 0:00:06.1]} 52. e6 {[%clk 0:00:09.1]} 52... Rg1
{[%clk 0:00:06.3]} 53. e7 {[%clk 0:00:08.4]} 53... Kf7 {[%clk 0:00:06.2]} 54.
Ra8 {[%clk 0:00:07.4]} 54... Rc2+ {[%clk 0:00:06.6]} 55. Kd5 {[%clk 0:00:07.1]}
55... Re2 {[%clk 0:00:06]} 56. Rf8+ {[%clk 0:00:05.8]} 56... Kg7 {[%clk
0:00:06.3]} 57. d7 {[%clk 0:00:01.5]} 57... Rxb1 {[%clk 0:00:04.3]} 58. e8=Q
{[%clk 0:00:01]} 58... h1=Q+ {[%clk 0:00:04.6]} 59. Kc4 {[%clk 0:00:01]} 59...
Qe4+ {[%clk 0:00:03.2]} 60. Qxe4 {[%clk 0:00:01]} 60... Rxe4+ {[%clk 0:00:03.8]}
61. Kd3 {[%clk 0:00:01.7]} 61... Rd1+ {[%clk 0:00:03.4]} 62. Kc3 {[%clk
0:00:01.7]} 62... Rxd7 {[%clk 0:00:04.1]} 63. Rxf5 {[%clk 0:00:02.5]} 63... Rf7
{[%clk 0:00:03.7]} 64. Kb2 {[%clk 0:00:03.4]} 64... Rxf5 {[%clk 0:00:03.4]} 65.
b4 {[%clk 0:00:04.3]} 65... g3 {[%clk 0:00:04]} 66. b5 {[%clk 0:00:05.2]} 66...
Rxb5+ {[%clk 0:00:04.2]} 67. Ka3 {[%clk 0:00:04.6]} 67... Rbe5 {[%clk
0:00:05.1]} 68. Kb2 {[%clk 0:00:05.5]} 68... g2 {[%clk 0:00:05.7]} 69. Ka3
{[%clk 0:00:06.4]} 69... Rf5 {[%clk 0:00:05.6]} 70. Ka2 {[%clk 0:00:07.3]} 70...
Rf3 {[%clk 0:00:06.4]} 0-1

[Event "Late-Titled-Tuesday-Blitz-May-28-2024"]
[Site "Chess.com"]
[Date "2024.05.28"]
[Round "3"]
[White "Iball95"]
[Black "NeverGiveUppp"]
[Result "0-1"]
[WhiteElo "2844"]
[BlackElo "2598"]
[TimeControl "180+1"]
[EndTime "14:30:17 PDT"]
[Termination "NeverGiveUppp won by checkmate"]

1. e4 {[%clk 0:03:00.9]} 1... c5 {[%clk 0:03:00]} 2. Nf3 {[%clk 0:03:00.3]} 2...
d6 {[%clk 0:03:00.6]} 3. Nc3 {[%clk 0:03:00.3]} 3... Nf6 {[%clk 0:02:59.6]} 4.
d4 {[%clk 0:03:00.7]} 4... cxd4 {[%clk 0:02:59.1]} 5. Qxd4 {[%clk 0:03:01.6]}
5... Nc6 {[%clk 0:02:55.1]} 6. Bb5 {[%clk 0:03:00.5]} 6... Bd7 {[%clk
0:02:55.6]} 7. Bxc6 {[%clk 0:03:01]} 7... Bxc6 {[%clk 0:02:55.6]} 8. Bg5 {[%clk
0:03:01.4]} 8... e6 {[%clk 0:02:54.9]} 9. O-O-O {[%clk 0:03:01.9]} 9... Be7
{[%clk 0:02:55]} 10. Rhe1 {[%clk 0:03:02.4]} 10... Qa5 {[%clk 0:02:52.9]} 11.
Nd5 {[%clk 0:03:01.9]} 11... Bxd5 {[%clk 0:02:18.9]} 12. exd5 {[%clk 0:03:01.6]}
12... Nxd5 {[%clk 0:02:15.8]} 13. Qxg7 {[%clk 0:01:54.8]} 13... Rf8 {[%clk
0:02:02.6]} 14. Bxe7 {[%clk 0:01:13.2]} 14... Nxe7 {[%clk 0:02:03.5]} 15. Kb1
{[%clk 0:01:10.8]} 15... O-O-O {[%clk 0:01:53.3]} 16. Qxh7 {[%clk 0:01:08.9]}
16... Nd5 {[%clk 0:01:44.6]} 17. Qe4 {[%clk 0:01:01.4]} 17... Kb8 {[%clk
0:01:43.6]} 18. g3 {[%clk 0:00:59]} 18... Rc8 {[%clk 0:01:43.2]} 19. Re2 {[%clk
0:00:50]} 19... Qb5 {[%clk 0:01:35.8]} 20. Ka1 {[%clk 0:00:45.8]} 20... Rc4
{[%clk 0:01:25.4]} 21. Qd3 {[%clk 0:00:40.7]} 21... Qc5 {[%clk 0:01:15.4]} 22.
c3 {[%clk 0:00:35.3]} 22... Ra4 {[%clk 0:01:12.6]} 23. Nd4 {[%clk 0:00:30.9]}
23... Rc8 {[%clk 0:01:10.2]} 24. h4 {[%clk 0:00:29.8]} 24... Qa5 {[%clk
0:01:10.1]} 25. Qb1 {[%clk 0:00:22.6]} 25... Qa6 {[%clk 0:00:43.4]} 26. Red2
{[%clk 0:00:21]} 26... Rc5 {[%clk 0:00:38.9]} 27. Nb3 {[%clk 0:00:20.7]} 27...
Rb5 {[%clk 0:00:39]} 28. Nc1 {[%clk 0:00:20.6]} 28... Nxc3 {[%clk 0:00:38.9]}
29. Rxd6 {[%clk 0:00:18.6]} 29... Nxb1 {[%clk 0:00:33.9]} 30. Rxa6 {[%clk
0:00:17.2]} 30... Rxa6 {[%clk 0:00:33.4]} 31. Kxb1 {[%clk 0:00:17.8]} 31... Rc6
{[%clk 0:00:32.7]} 32. Ne2 {[%clk 0:00:15.9]} 32... Rd5 {[%clk 0:00:33.1]} 33.
Rxd5 {[%clk 0:00:13.8]} 33... exd5 {[%clk 0:00:34]} 34. h5 {[%clk 0:00:13.5]}
34... Rf6 {[%clk 0:00:33.3]} 35. f4 {[%clk 0:00:12.9]} 35... Re6 {[%clk
0:00:31.4]} 36. Nc3 {[%clk 0:00:05.5]} 36... Re3 {[%clk 0:00:31.1]} 37. g4
{[%clk 0:00:03.5]} 37... d4 {[%clk 0:00:28.4]} 38. Nd5 {[%clk 0:00:03.8]} 38...
Rh3 {[%clk 0:00:25.1]} 39. Kc2 {[%clk 0:00:03.3]} 39... Kc8 {[%clk 0:00:25.5]}
40. Nf6 {[%clk 0:00:02.3]} 40... Kc7 {[%clk 0:00:22.5]} 41. g5 {[%clk
0:00:02.9]} 41... Kd6 {[%clk 0:00:22.4]} 42. h6 {[%clk 0:00:02.9]} 42... Ke6
{[%clk 0:00:22.7]} 43. h7 {[%clk 0:00:02.2]} 43... Kf5 {[%clk 0:00:21.4]} 44.
Ne8 {[%clk 0:00:01.2]} 44... Rxh7 {[%clk 0:00:20.5]} 45. Nd6+ {[%clk 0:00:02.1]}
45... Kxf4 {[%clk 0:00:20.4]} 46. Nxb7 {[%clk 0:00:02.4]} 46... Ke4 {[%clk
0:00:19.6]} 47. Nc5+ {[%clk 0:00:01.6]} 47... Kd5 {[%clk 0:00:19.5]} 48. Nb3
{[%clk 0:00:01.3]} 48... Rh2+ {[%clk 0:00:20.4]} 49. Kd3 {[%clk 0:00:01.6]}
49... Rxb2 {[%clk 0:00:19.9]} 50. Nxd4 {[%clk 0:00:02.2]} 50... Rxa2 {[%clk
0:00:18.5]} 51. Nb5 {[%clk 0:00:02.8]} 51... Ra5 {[%clk 0:00:16.9]} 52. Nc3+
{[%clk 0:00:03.2]} 52... Ke5 {[%clk 0:00:15.5]} 53. Ne2 {[%clk 0:00:03.7]} 53...
Ra3+ {[%clk 0:00:14.4]} 54. Kc4 {[%clk 0:00:04.3]} 54... Kf5 {[%clk 0:00:14.3]}
55. Nd4+ {[%clk 0:00:03.9]} 55... Kxg5 {[%clk 0:00:14.2]} 56. Nb5 {[%clk
0:00:04.8]} 56... Re3 {[%clk 0:00:13.1]} 57. Kd4 {[%clk 0:00:04.3]} 57... Re1
{[%clk 0:00:12.6]} 58. Nxa7 {[%clk 0:00:04.4]} 58... f5 {[%clk 0:00:13.1]} 59.
Kd3 {[%clk 0:00:04.7]} 59... f4 {[%clk 0:00:13.7]} 60. Kd2 {[%clk 0:00:04.7]}
60... Re7 {[%clk 0:00:14.3]} 61. Nc6 {[%clk 0:00:04.7]} 61... Re8 {[%clk
0:00:14.1]} 62. Nd4 {[%clk 0:00:04.3]} 62... Rd8 {[%clk 0:00:13]} 63. Kd3 {[%clk
0:00:04.3]} 63... Kg4 {[%clk 0:00:12.6]} 64. Ke4 {[%clk 0:00:04.6]} 64... Rxd4+
{[%clk 0:00:13.1]} 65. Kxd4 {[%clk 0:00:05.5]} 65... Kg3 {[%clk 0:00:13.4]} 66.
Kd3 {[%clk 0:00:06.4]} 66... f3 {[%clk 0:00:13.8]} 67. Kd2 {[%clk 0:00:07.3]}
67... Kg2 {[%clk 0:00:13.9]} 68. Ke1 {[%clk 0:00:07.5]} 68... f2+ {[%clk
0:00:14.5]} 69. Ke2 {[%clk 0:00:08.4]} 69... f1=Q+ {[%clk 0:00:14.8]} 70. Ke3
{[%clk 0:00:09.3]} 70... Qf3+ {[%clk 0:00:15.1]} 71. Kd4 {[%clk 0:00:09.1]}
71... Kf2 {[%clk 0:00:14.1]} 72. Ke5 {[%clk 0:00:10]} 72... Ke3 {[%clk
0:00:14.4]} 73. Kd6 {[%clk 0:00:09.9]} 73... Qh5 {[%clk 0:00:14.3]} 74. Kc6
{[%clk 0:00:09.8]} 74... Kd4 {[%clk 0:00:14.7]} 75. Kd6 {[%clk 0:00:10.2]} 75...
Qg6+ {[%clk 0:00:13.9]} 76. Ke7 {[%clk 0:00:11.1]} 76... Ke5 {[%clk 0:00:14]}
77. Kf8 {[%clk 0:00:12]} 77... Qh7 {[%clk 0:00:13.6]} 78. Ke8 {[%clk 0:00:12.4]}
78... Ke6 {[%clk 0:00:14.2]} 79. Kf8 {[%clk 0:00:13.3]} 79... Qf7# {[%clk
0:00:14.2]} 0-1

[Event "Late-Titled-Tuesday-Blitz-May-28-2024"]
[Site "Chess.com"]
[Date "2024.05.28"]
[Round "3"]
[White "guillembaches"]
[Black "sammartin99"]
[Result "1-0"]
[WhiteElo "2490"]
[BlackElo "2296"]
[TimeControl "180+1"]
[EndTime "14:30:21 PDT"]
[Termination "guillembaches won by resignation"]

1. e4 {[%clk 0:03:00.9]} 1... c6 {[%clk 0:02:58.4]} 2. d4 {[%clk 0:02:59.5]}
2... d5 {[%clk 0:02:58.3]} 3. e5 {[%clk 0:02:59.8]} 3... Bf5 {[%clk 0:02:57.6]}
4. Be3 {[%clk 0:02:58.2]} 4... e6 {[%clk 0:02:56.2]} 5. Nd2 {[%clk 0:02:58.3]}
5... Nd7 {[%clk 0:02:54.3]} 6. Be2 {[%clk 0:02:58.2]} 6... Ne7 {[%clk
0:02:51.4]} 7. f4 {[%clk 0:02:57.1]} 7... h6 {[%clk 0:02:48.1]} 8. Ngf3 {[%clk
0:02:56.3]} 8... Nc8 {[%clk 0:02:47.7]} 9. O-O {[%clk 0:02:52.1]} 9... Be7
{[%clk 0:02:46.1]} 10. Nb3 {[%clk 0:02:49.4]} 10... a5 {[%clk 0:02:31.1]} 11. a4
{[%clk 0:02:48.1]} 11... Ncb6 {[%clk 0:02:29.6]} 12. Nfd2 {[%clk 0:02:39.2]}
12... Bh7 {[%clk 0:02:17.8]} 13. Bd3 {[%clk 0:02:36.9]} 13... Bxd3 {[%clk
0:02:16.5]} 14. cxd3 {[%clk 0:02:37.4]} 14... g6 {[%clk 0:02:08.9]} 15. Nc5
{[%clk 0:02:34.8]} 15... Nxc5 {[%clk 0:01:59]} 16. dxc5 {[%clk 0:02:35.7]} 16...
Nd7 {[%clk 0:01:59.5]} 17. d4 {[%clk 0:02:27.9]} 17... b6 {[%clk 0:01:56.7]} 18.
Nb3 {[%clk 0:02:20]} 18... bxc5 {[%clk 0:01:54.6]} 19. dxc5 {[%clk 0:02:20.1]}
19... Rb8 {[%clk 0:01:52.6]} 20. Rc1 {[%clk 0:02:17.3]} 20... Rb4 {[%clk
0:01:47]} 21. Nd4 {[%clk 0:01:41.3]} 21... Qa8 {[%clk 0:01:46.9]} 22. Nf3 {[%clk
0:01:29.4]} 22... Rxb2 {[%clk 0:01:43.5]} 23. Rb1 {[%clk 0:01:24.9]} 23... Rxb1
{[%clk 0:01:31.1]} 24. Qxb1 {[%clk 0:01:24.9]} 24... Bxc5 {[%clk 0:01:28.3]} 25.
Bxc5 {[%clk 0:01:21.4]} 25... Nxc5 {[%clk 0:01:29.2]} 26. Rc1 {[%clk 0:01:06.6]}
26... Ne4 {[%clk 0:01:21.6]} 27. Qb6 {[%clk 0:00:53.1]} 27... c5 {[%clk
0:00:55.7]} 28. h4 {[%clk 0:00:33.7]} 28... O-O {[%clk 0:00:45.8]} 29. h5 {[%clk
0:00:32.7]} 29... gxh5 {[%clk 0:00:38.1]} 30. Kh2 {[%clk 0:00:29.9]} 30... Rb8
{[%clk 0:00:35.7]} 31. Qc7 {[%clk 0:00:29.7]} 31... Rc8 {[%clk 0:00:25.8]} 32.
Qe7 {[%clk 0:00:29.5]} 32... Qa6 {[%clk 0:00:10.6]} 33. f5 {[%clk 0:00:25.8]}
33... exf5 {[%clk 0:00:05.7]} 34. Rb1 {[%clk 0:00:25.7]} 34... Qe6 {[%clk
0:00:04.6]} 35. Qh4 {[%clk 0:00:23.5]} 35... Ng5 {[%clk 0:00:04.8]} 36. Nxg5
{[%clk 0:00:18.1]} 36... Qxe5+ {[%clk 0:00:05.1]} 37. Kh1 {[%clk 0:00:17.6]}
37... hxg5 {[%clk 0:00:04.5]} 38. Qxg5+ {[%clk 0:00:18]} 38... Qg7 {[%clk
0:00:03.9]} 39. Qxf5 {[%clk 0:00:17.9]} 39... Rd8 {[%clk 0:00:02.6]} 40. Rf1
{[%clk 0:00:15.9]} 40... d4 {[%clk 0:00:02.6]} 41. Rf3 {[%clk 0:00:16]} 41...
Qg6 {[%clk 0:00:01.2]} 42. Qf4 {[%clk 0:00:15.5]} 42... d3 {[%clk 0:00:01]} 43.
Rg3 {[%clk 0:00:15.7]} 43... Qxg3 {[%clk 0:00:01.1]} 44. Qxg3+ {[%clk
0:00:15.5]} 44... Kf8 {[%clk 0:00:02]} 45. Qc7 {[%clk 0:00:12.7]} 45... Ke8
{[%clk 0:00:01.6]} 46. Qe5+ {[%clk 0:00:12.6]} 46... Kf8 {[%clk 0:00:01.6]} 47.
Qxc5+ {[%clk 0:00:13]} 47... Ke8 {[%clk 0:00:02.2]} 48. Qc6+ {[%clk 0:00:13.2]}
48... Ke7 {[%clk 0:00:02.4]} 49. Qc5+ {[%clk 0:00:13.4]} 49... Ke8 {[%clk
0:00:03.1]} 50. Qe5+ {[%clk 0:00:13.3]} 50... Kf8 {[%clk 0:00:03.3]} 51. Qxa5
{[%clk 0:00:13.2]} 51... Ke7 {[%clk 0:00:02.6]} 52. Qe5+ {[%clk 0:00:13.2]}
52... Kf8 {[%clk 0:00:02.4]} 53. Qh8+ {[%clk 0:00:13.7]} 53... Ke7 {[%clk
0:00:02.7]} 54. Qe5+ {[%clk 0:00:14.2]} 54... Kf8 {[%clk 0:00:02.9]} 55. Qc5+
{[%clk 0:00:14]} 55... Ke8 {[%clk 0:00:03.3]} 56. Qe3+ {[%clk 0:00:14.2]} 56...
Kf8 {[%clk 0:00:03.4]} 57. Qd2 {[%clk 0:00:14.4]} 57... Rd6 {[%clk 0:00:01.8]}
58. a5 {[%clk 0:00:14.7]} 58... Ke7 {[%clk 0:00:01.6]} 59. a6 {[%clk 0:00:15]}
59... Rxa6 {[%clk 0:00:01.6]} 60. Qxd3 {[%clk 0:00:15.3]} 60... Re6 {[%clk
0:00:01]} 61. Qd2 {[%clk 0:00:14.9]} 61... Kf6 {[%clk 0:00:01]} 62. Qh6+ {[%clk
0:00:14]} 62... Ke5 {[%clk 0:00:01]} 63. Qxh5+ {[%clk 0:00:14.5]} 63... Kd6
{[%clk 0:00:01.9]} 64. Qxf7 {[%clk 0:00:14.6]} 64... Ke5 {[%clk 0:00:01.7]} 65.
Qh5+ {[%clk 0:00:13.8]} 65... Kf6 {[%clk 0:00:02]} 66. Qf3+ {[%clk 0:00:13.7]}
66... Kg6 {[%clk 0:00:01.8]} 67. Kh2 {[%clk 0:00:14.2]} 67... Rf6 {[%clk
0:00:02.4]} 68. Qg4+ {[%clk 0:00:14.5]} 68... Kf7 {[%clk 0:00:02.6]} 69. Qd7+
{[%clk 0:00:15]} 69... Kg6 {[%clk 0:00:02.8]} 70. g3 {[%clk 0:00:15.1]} 1-0

[Event "Late-Titled-Tuesday-Blitz-May-28-2024"]
[Site "Chess.com"]
[Date "2024.05.28"]
[Round "3"]
[White "sleeping_in_the_fire"]
[Black "Fonsofan"]
[Result "1/2-1/2"]
[WhiteElo "2440"]
[BlackElo "2792"]
[TimeControl "180+1"]
[EndTime "14:30:22 PDT"]
[Termination "Game drawn - insufficient material"]

1. e4 {[%clk 0:03:00.9]} 1... d6 {[%clk 0:02:51.8]} 2. d4 {[%clk 0:02:59]} 2...
Nf6 {[%clk 0:02:51.2]} 3. Nc3 {[%clk 0:02:58.8]} 3... e5 {[%clk 0:02:51.7]} 4.
dxe5 {[%clk 0:02:32.4]} 4... dxe5 {[%clk 0:02:52.6]} 5. Qxd8+ {[%clk 0:02:31.5]}
5... Kxd8 {[%clk 0:02:53.5]} 6. Bg5 {[%clk 0:02:31.8]} 6... Bd6 {[%clk
0:02:52.4]} 7. O-O-O {[%clk 0:02:29.5]} 7... Nd7 {[%clk 0:02:45.6]} 8. f4 {[%clk
0:02:25.6]} 8... exf4 {[%clk 0:02:41.4]} 9. Nf3 {[%clk 0:02:25.1]} 9... h6
{[%clk 0:02:41.9]} 10. Bxf6+ {[%clk 0:02:14.6]} 10... gxf6 {[%clk 0:02:42.8]}
11. Bc4 {[%clk 0:02:10.4]} 11... Rh7 {[%clk 0:02:25.1]} 12. Nd5 {[%clk
0:01:55.6]} 12... Rg7 {[%clk 0:02:14.4]} 13. Nxf6 {[%clk 0:01:51.2]} 13... Nxf6
{[%clk 0:02:08.3]} 14. e5 {[%clk 0:01:51.2]} 14... Ng4 {[%clk 0:02:07.4]} 15.
Rd4 {[%clk 0:01:36.7]} 15... Nxe5 {[%clk 0:01:50.5]} 16. Nxe5 {[%clk 0:01:36.4]}
16... Be6 {[%clk 0:01:51.2]} 17. Re1 {[%clk 0:01:05.2]} 17... Ke7 {[%clk
0:01:44.6]} 18. Nxf7 {[%clk 0:01:00.2]} 18... Kxf7 {[%clk 0:01:24.9]} 19. Rxe6
{[%clk 0:00:56.5]} 19... Kf8 {[%clk 0:01:19.1]} 20. Rxh6 {[%clk 0:00:51.5]}
20... Ke7 {[%clk 0:01:19.6]} 21. Re4+ {[%clk 0:00:46.6]} 21... Kd7 {[%clk
0:01:19.4]} 22. Bb5+ {[%clk 0:00:44.2]} 22... c6 {[%clk 0:01:16.8]} 23. Rd4
{[%clk 0:00:44.5]} 23... cxb5 {[%clk 0:01:16.6]} 24. Rhxd6+ {[%clk 0:00:43.8]}
24... Kc7 {[%clk 0:01:17.1]} 25. Rf6 {[%clk 0:00:40.3]} 25... Rxg2 {[%clk
0:01:10.3]} 26. Rfxf4 {[%clk 0:00:23.6]} 26... Rxh2 {[%clk 0:01:03.6]} 27. b3
{[%clk 0:00:16.7]} 27... Rh7 {[%clk 0:00:59.4]} 28. Kb2 {[%clk 0:00:15.8]} 28...
a6 {[%clk 0:00:59.9]} 29. Rf5 {[%clk 0:00:15.9]} 29... Re8 {[%clk 0:00:57.6]}
30. a4 {[%clk 0:00:15.5]} 30... bxa4 {[%clk 0:00:55.3]} 31. Rxa4 {[%clk
0:00:16.4]} 31... Kb6 {[%clk 0:00:55.3]} 32. Rb4+ {[%clk 0:00:16.4]} 32... Ka7
{[%clk 0:00:55.5]} 33. Rf6 {[%clk 0:00:16.3]} 33... Rc8 {[%clk 0:00:55.4]} 34.
Rd4 {[%clk 0:00:15]} 34... Rh2 {[%clk 0:00:52.1]} 35. Rc4 {[%clk 0:00:12.7]}
35... Rxc4 {[%clk 0:00:52.1]} 36. bxc4 {[%clk 0:00:13.6]} 36... Rh3 {[%clk
0:00:50.5]} 37. Rg6 {[%clk 0:00:11.5]} 37... a5 {[%clk 0:00:48.6]} 38. Rf6
{[%clk 0:00:10.4]} 38... b6 {[%clk 0:00:47.8]} 39. Rd6 {[%clk 0:00:09.8]} 39...
Kb7 {[%clk 0:00:46.4]} 40. Rf6 {[%clk 0:00:09.2]} 40... a4 {[%clk 0:00:45.3]}
41. Rd6 {[%clk 0:00:08.6]} 41... a3+ {[%clk 0:00:44.6]} 42. Ka2 {[%clk
0:00:08.3]} 42... Rc3 {[%clk 0:00:45.2]} 43. Rd3 {[%clk 0:00:05.6]} 43... Rxc2+
{[%clk 0:00:41.4]} 44. Kxa3 {[%clk 0:00:05.3]} 44... Rxc4 {[%clk 0:00:41.7]} 45.
Kb3 {[%clk 0:00:05.5]} 45... Rc5 {[%clk 0:00:41.3]} 46. Rh3 {[%clk 0:00:05.8]}
46... Ka6 {[%clk 0:00:41.6]} 47. Kb4 {[%clk 0:00:05.6]} 47... Rg5 {[%clk
0:00:40.6]} 48. Ra3+ {[%clk 0:00:06]} 48... Kb7 {[%clk 0:00:40.4]} 49. Rh3
{[%clk 0:00:06.9]} 49... Rg4+ {[%clk 0:00:40.5]} 50. Kb3 {[%clk 0:00:07.2]}
50... Ka6 {[%clk 0:00:40.4]} 51. Rh5 {[%clk 0:00:07.2]} 51... Rg3+ {[%clk
0:00:40]} 52. Kb4 {[%clk 0:00:06.5]} 52... Rg1 {[%clk 0:00:40.9]} 53. Kb3 {[%clk
0:00:06.4]} 53... Rb1+ {[%clk 0:00:40.8]} 54. Ka4 {[%clk 0:00:06.4]} 54... b5+
{[%clk 0:00:39.2]} 55. Ka3 {[%clk 0:00:07.1]} 55... Ka5 {[%clk 0:00:39.8]} 56.
Ka2 {[%clk 0:00:07.6]} 56... Rg1 {[%clk 0:00:40]} 57. Rh2 {[%clk 0:00:08]} 57...
Rg3 {[%clk 0:00:39.5]} 58. Rf2 {[%clk 0:00:07.5]} 58... Rg4 {[%clk 0:00:37.1]}
59. Kb2 {[%clk 0:00:07.9]} 59... Ka4 {[%clk 0:00:37.2]} 60. Ka2 {[%clk
0:00:07.5]} 60... b4 {[%clk 0:00:37]} 61. Kb2 {[%clk 0:00:07.9]} 61... Rc4
{[%clk 0:00:34.6]} 62. Rh2 {[%clk 0:00:08.1]} 62... Rc6 {[%clk 0:00:32.2]} 63.
Rf2 {[%clk 0:00:08.2]} 63... Rd6 {[%clk 0:00:31.8]} 64. Rh2 {[%clk 0:00:08.2]}
64... Rf6 {[%clk 0:00:32]} 65. Rg2 {[%clk 0:00:08.3]} 65... Rf3 {[%clk
0:00:31.6]} 66. Rh2 {[%clk 0:00:08.5]} 66... Rb3+ {[%clk 0:00:32]} 67. Ka2
{[%clk 0:00:08.9]} 67... Rc3 {[%clk 0:00:31.7]} 68. Kb2 {[%clk 0:00:09.5]} 68...
Rc4 {[%clk 0:00:31.8]} 69. Rg2 {[%clk 0:00:09]} 69... Rh4 {[%clk 0:00:29.3]} 70.
Rf2 {[%clk 0:00:09]} 70... Kb5 {[%clk 0:00:29.9]} 71. Rg2 {[%clk 0:00:09.1]}
71... Kc4 {[%clk 0:00:30.5]} 72. Rc2+ {[%clk 0:00:09]} 72... Kd5 {[%clk
0:00:30]} 73. Rg2 {[%clk 0:00:09.9]} 73... Rh3 {[%clk 0:00:29.2]} 74. Rd2+
{[%clk 0:00:09.2]} 74... Kc5 {[%clk 0:00:29]} 75. Rc2+ {[%clk 0:00:09.6]} 75...
Kb5 {[%clk 0:00:28.7]} 76. Rg2 {[%clk 0:00:10.5]} 76... Rd3 {[%clk 0:00:23.4]}
77. Rf2 {[%clk 0:00:10.6]} 77... Ka4 {[%clk 0:00:23.6]} 78. Rg2 {[%clk
0:00:10.4]} 78... Rb3+ {[%clk 0:00:24.2]} 79. Ka2 {[%clk 0:00:10.6]} 79... Rf3
{[%clk 0:00:23.7]} 80. Kb2 {[%clk 0:00:10.9]} 80... Rf4 {[%clk 0:00:21.7]} 81.
Rh2 {[%clk 0:00:10.7]} 81... Rc4 {[%clk 0:00:22.3]} 82. Rg2 {[%clk 0:00:10.3]}
82... b3 {[%clk 0:00:22.8]} 83. Rh2 {[%clk 0:00:10]} 83... Kb4 {[%clk
0:00:23.4]} 84. Rg2 {[%clk 0:00:10.2]} 84... Rc2+ {[%clk 0:00:23.8]} 85. Rxc2
{[%clk 0:00:10.1]} 85... bxc2 {[%clk 0:00:24.7]} 86. Kxc2 {[%clk 0:00:10.9]}
1/2-1/2